fUST/lending_fUST_20251023
["ID","MTS","AMOUNT","RATE_DAILY","PERIOD"]
[392107208,1761163847010,-656.16275011,0.00035369,2]
[392107209,1761163847019,-841.70033571,0.00038356,7]
[392107210,1761163847028,-623.88337196,0.00038356,7]
[392107211,1761163847037,-590.50979065,0.00038356,7]
[392107212,1761163847047,-202.22453717,0.00038356,7]
[392107213,1761163847056,-340.7792144,0.00038356,7]
[392107214,1761163847067,-4120.989,0.00038356,7]
[392107217,1761164167321,173.963694,0.00024034,2]
[392107218,1761164167544,173.963694,0.00024034,61]
[392107219,1761164167785,173.963694,0.00024034,120]
[392107234,1761164755708,594.868874,0.00013699,2]
[392107235,1761164755919,594.868874,0.00020187,2]
[392107358,1761165032555,-1067.81988674,0.00024463,2]
[392107360,1761165032564,-200.0,0.00024463,2]
[392107362,1761165032573,-337.36257339,0.00024463,2]
[392107364,1761165032582,-101.39236527,0.00024463,2]
[392107481,1761165038328,-579.09009053,0.00024463,2]
[392107484,1761165038338,-200.0,0.00024658,15]
[392107485,1761165038347,-624.87915476,0.00024748,2]
[392107488,1761165038356,-1200.0,0.00024789,2]
[392107489,1761165038365,-2384.55276389,0.0002479,2]
[392107492,1761165038378,-3076.71418521,0.0002479,2]
[392107494,1761165038387,-524.93020008,0.000248,2]
[392107496,1761165038396,-120.81025737,0.00024836,2]
[392107498,1761165038411,-179.18974263,0.00024836,2]
[392107500,1761165038420,-550.9,0.00024839,10]
[392107503,1761165038429,-285.39025737,0.00024839,2]
[392107505,1761165038441,-1144.48450276,0.00024839,2]
[392107507,1761165038452,-2214.34936157,0.00024839,2]
[392107578,1761165040642,-356.06605687,0.00024839,2]
[392107579,1761165040652,-194.1760395,0.00024848,2]
[392107581,1761165040755,-21.11923528,0.00024848,2]
[392107582,1761165040765,-500.0,0.00024848,2]
[392107583,1761165040775,-525.69704883,0.00024848,2]
[392107584,1761165040784,-472.52440549,0.00024848,2]
[392107585,1761165040794,-286.21576284,0.00024848,2]
[392107586,1761165040803,-486.50851977,0.00024848,2]
[392107587,1761165040814,-500.0,0.00024848,2]
[392107588,1761165040824,-252.76177438,0.00024848,2]
[392107589,1761165040835,-500.0,0.00024848,2]
[392107590,1761165040845,-500.0,0.00024848,2]
[392107591,1761165040854,-500.0,0.00024848,2]
[392107593,1761165040864,-500.0,0.00024848,2]
[392107595,1761165040873,-500.0,0.00024848,2]
[392107597,1761165040882,-500.0,0.00024848,2]
[392107599,1761165040892,-321.39009105,0.00024848,2]
[392107601,1761165040901,-500.0,0.00024848,2]
[392107603,1761165040912,-500.0,0.00024848,2]
[392107605,1761165040922,-500.0,0.00024848,2]
[392107607,1761165040931,-105683.1502615,0.00024849,2]
[392107858,1761165046644,-438.63549823,0.00024849,2]
[392107864,1761165046704,-327.74254354,0.00024849,2]
[392107875,1761165237120,279.5302147,0.00023839,2]
[392107883,1761165480457,291.75,0.00016983,2]
[392107886,1761165670283,1371.4331843,0.00023941,2]
[392107887,1761165673472,-403.14601822,0.000249,7]
[392107888,1761165673503,-13950.69,0.000249,7]
[392107889,1761165673532,-500.0,0.000249,7]
[392107890,1761165677266,459.08,0.00024739,10]
[392107891,1761165688805,382.57,0.00024739,10]
[392107892,1761165698721,5000.0,0.000249,7]
[392107893,1761165699952,318.81,0.00024739,10]
[392107894,1761165706490,5000.0,0.000249,7]
[392107895,1761165711443,265.67,0.00024739,10]
[392107896,1761165721705,5000.0,0.000249,7]
[392107897,1761165723098,221.39,0.00024739,10]
[392107898,1761165730061,3081.23961578,0.000249,7]
[392107899,1761165733531,184.49,0.00024739,10]
[392107900,1761165737637,12555.62,0.000248,7]
[392107901,1761165744797,153.75,0.00024739,10]
[392107902,1761165745805,5000.0,0.000249,7]
[392107903,1761165755475,768.75,0.00024739,10]
[392107904,1761165761012,2644.91742957,0.000249,7]
[392107905,1761165768770,5000.0,0.000249,7]
[392107906,1761165776755,5000.0,0.000249,7]
[392107907,1761165792400,5000.0,0.000249,7]
[392107908,1761165814718,5000.0,0.000249,7]
[392107909,1761165822406,5000.0,0.000249,7]
[392107910,1761165837463,5000.0,0.000249,7]
[392107912,1761165845221,5000.0,0.000249,7]
[392107913,1761165860245,5000.0,0.000249,7]
[392107914,1761165868578,5000.0,0.000249,7]
[392107915,1761165873091,11300.06,0.000248,7]
[392107916,1761165883678,5000.0,0.000249,7]
[392107917,1761165891401,3955.98091821,0.000249,7]
[392107918,1761165891425,1044.01908179,0.000249,7]
[392107919,1761165906461,5000.0,0.000249,7]
[392107921,1761165914238,5000.0,0.000249,7]
[392107926,1761165929883,5000.0,0.000249,7]
[392107927,1761165931966,183.0315179,0.00023707,2]
[392107928,1761165937595,5000.0,0.000242,2]
[392107930,1761165952793,5000.0,0.000242,2]
[392107931,1761165960377,5000.0,0.000242,2]
[392107932,1761165975690,5000.0,0.000242,2]
[392107933,1761165983392,4354.21637825,0.000242,2]
[392107934,1761165998449,5000.0,0.000242,2]
[392107935,1761166020790,5000.0,0.0002421,9]
[392107940,1761166043768,5000.0,0.0002421,9]
[392107952,1761166065984,5000.0,0.0002421,9]
[392107953,1761166073677,5000.0,0.0002421,9]
[392107954,1761166088710,5000.0,0.0002421,9]
[392107956,1761166110901,2027.21030819,0.0002421,9]
[392108131,1761166172078,1371.4331843,0.00024125,2]
[392108170,1761166231633,-300.0,0.00024543,2]
[392108172,1761166231647,-305.57180953,0.00024543,2]
[392108175,1761166231659,-765.86137478,0.00024543,2]
[392108176,1761166231667,-350.2228362,0.00024573,2]
[392108178,1761166231677,-528.263958,0.0002458,2]
[392108180,1761166231686,-636.03771107,0.00024639,2]
[392108182,1761166231695,-300.0,0.00024671,2]
[392108184,1761166231705,-1200.0,0.00024671,2]
[392108186,1761166231715,-1029.0,0.00024672,2]
[392108188,1761166231724,-6556.80893368,0.00024673,2]
[392108190,1761166231733,-16755.89195571,0.00024739,2]
[392108191,1761166231743,-1726.92,0.00024739,3]
[392108193,1761166231753,-863.46,0.00024739,3]
[392108195,1761166231763,-431.73,0.00024739,3]
[392108197,1761166231772,-215.87,0.00024739,3]
[392108200,1761166231781,-647.63,0.00024739,3]
[392108203,1761166231790,-500.0,0.00024748,2]
[392108205,1761166231800,-167.95186445,0.00024748,2]
[392108206,1761166231809,-242.97609582,0.00024748,2]
[392108209,1761166231819,-28341.30283205,0.00024749,2]
[392108211,1761166231830,-1082.27224471,0.00024749,2]
[392108252,1761166237716,-2403.30845385,0.00024673,2]
[392108253,1761166237727,-500.0,0.00024747,2]
[392108254,1761166237736,-500.0,0.00024747,2]
[392108255,1761166237746,-188.83233114,0.00024747,2]
[392108256,1761166237755,-500.0,0.00024747,2]
[392108257,1761166237765,-500.0,0.00024747,2]
[392108258,1761166237775,-500.0,0.00024747,2]
[392108259,1761166237784,-500.0,0.00024747,2]
[392108260,1761166237794,-409.84979979,0.00024747,2]
[392108261,1761166237804,-500.0,0.00024747,2]
[392108262,1761166237814,-454.87608076,0.00024747,2]
[392108263,1761166237823,-500.0,0.00024747,2]
[392108264,1761166237834,-500.0,0.00024747,2]
[392108265,1761166237847,-500.0,0.00024747,2]
[392108266,1761166237856,-500.0,0.00024747,2]
[392108267,1761166237865,-168.53778592,0.00024747,2]
[392108268,1761166237875,-500.0,0.00024747,2]
[392108269,1761166237885,-500.0,0.00024747,2]
[392108270,1761166237894,-300.0,0.00024747,2]
[392108271,1761166237904,-500.0,0.00024747,2]
[392108272,1761166237913,-500.0,0.00024747,2]
[392108274,1761166237924,-500.0,0.00024747,2]
[392108276,1761166237933,-500.0,0.00024747,2]
[392108278,1761166237942,-500.0,0.00024747,2]
[392108280,1761166237951,-252.71964936,0.00024747,2]
[392108281,1761166237960,-500.0,0.00024747,2]
[392108282,1761166237970,-540.71901016,0.00024747,2]
[392108283,1761166237979,-500.0,0.00024747,2]
[392108284,1761166237988,-500.0,0.00024747,2]
[392108285,1761166237998,-500.0,0.00024747,2]
[392108286,1761166238007,-500.0,0.00024747,2]
[392108287,1761166238017,-500.0,0.00024747,2]
[392108288,1761166238027,-500.0,0.00024747,2]
[392108289,1761166238036,-500.0,0.00024747,2]
[392108290,1761166238046,-550.0,0.00024747,2]
[392108291,1761166238055,-500.0,0.00024747,2]
[392108292,1761166238065,-500.0,0.00024747,2]
[392108293,1761166238074,-500.0,0.00024747,2]
[392108294,1761166238084,-500.0,0.00024747,2]
[392108295,1761166238093,-382.13900911,0.00024747,2]
[392108296,1761166238103,-340576.42492324,0.00024749,2]
[392108297,1761166238112,-500.0,0.00024773,2]
[392108298,1761166238121,-500.0,0.00024773,2]
[392108299,1761166238130,-500.0,0.00024773,2]
[392108300,1761166238140,-630.81369819,0.00024773,2]
[392108301,1761166238149,-501.80797894,0.00024773,2]
[392108302,1761166238159,-158.51248006,0.00024773,2]
[392108303,1761166238168,-500.0,0.00024773,2]
[392108304,1761166238177,-500.0,0.00024773,2]
[392108305,1761166238187,-294.19273897,0.00024773,2]
[392108306,1761166238197,-501.79118445,0.00024773,2]
[392108307,1761166238206,-500.0,0.00024773,2]
[392108308,1761166238216,-565.25190032,0.00024773,2]
[392108309,1761166238225,-500.0,0.00024773,2]
[392108310,1761166238234,-406.72294032,0.00024773,2]
[392108311,1761166238243,-162.28282621,0.00024773,2]
[392108312,1761166238253,-500.0,0.00024773,2]
[392108313,1761166238262,-500.0,0.00024773,2]
[392108314,1761166238272,-500.0,0.00024773,2]
[392108315,1761166238281,-10170.05,0.000248,7]
[392108316,1761166238291,-2971.64413264,0.000248,2]
[392108317,1761166238300,-271.17643965,0.00024818,2]
[392108318,1761166238310,-531.15446138,0.00024838,2]
[392108319,1761166238320,-510.1697177,0.00024848,2]
[392108320,1761166238329,-500.0,0.00024873,2]
[392108321,1761166238338,-500.0,0.00024873,2]
[392108322,1761166238347,-500.0,0.00024873,2]
[392108323,1761166238357,-500.48425532,0.00024873,2]
[392108324,1761166238366,-500.0,0.00024873,2]
[392108325,1761166238375,-165.62321695,0.00024873,2]
[392108326,1761166238385,-500.0,0.00024873,2]
[392108327,1761166238394,-500.39457438,0.00024873,2]
[392108328,1761166238403,-500.0,0.00024873,2]
[392108329,1761166238412,-3714.5551658,0.0002489,2]
[392108330,1761166238421,-371.45551658,0.00024963,2]
[392108331,1761166238431,-500.0,0.00024973,2]
[392108332,1761166238440,-500.82699209,0.00024973,2]
[392108333,1761166238450,-500.0,0.00024973,2]
[392108334,1761166238459,-500.0,0.00024973,2]
[392108335,1761166238468,-500.0,0.00024973,2]
[392108336,1761166238478,-500.0,0.00024973,2]
[392108337,1761166238487,-500.0,0.00024973,2]
[392108338,1761166238496,-160.12134622,0.00024973,2]
[392108339,1761166238505,-500.0,0.00024973,2]
[392108340,1761166238514,-500.0,0.00024973,2]
[392108341,1761166238524,-500.0,0.00024973,2]
[392108342,1761166238533,-500.0,0.00024973,2]
[392108343,1761166238543,-619.07400712,0.00024973,2]
[392108344,1761166238552,-500.0,0.00024973,2]
[392108345,1761166238561,-500.0,0.00024973,2]
[392108346,1761166238570,-500.0,0.00024973,2]
[392108347,1761166238579,-151.0,0.00024973,2]
[392108348,1761166238589,-278.97632628,0.00024973,2]
[392108349,1761166238599,-151.0,0.00024973,2]
[392108350,1761166238608,-371.45551658,0.0002498,2]
[392108351,1761166238617,-89349.51063744,0.0002499,2]
[392108352,1761166238626,-1076.36717253,0.00025,2]
[392108353,1761166238635,-1410.91358904,0.00025,2]
[392108354,1761166238644,-151.0,0.00025,7]
[392108355,1761166238653,-500.0,0.00025022,2]
[392108356,1761166238663,-151.0,0.00025028,2]
[392108357,1761166238673,-151.0,0.00025083,2]
[392108358,1761166238682,-151.0,0.00025137,2]
[392108359,1761166238692,-191.0,0.00025192,2]
[392108360,1761166238701,-500.0,0.00025296,2]
[392108361,1761166238710,-501.9168495,0.00025321,2]
[392108362,1761166238720,-310.45424066,0.00025321,2]
[392108363,1761166238728,-500.0,0.00025321,2]
[392108364,1761166238737,-1000.0,0.00025321,2]
[392108365,1761166238747,-1000.0,0.00025321,2]
[392108366,1761166238756,-1000.0,0.00025321,2]
[392108367,1761166238765,-1000.0,0.00025321,2]
[392108368,1761166238775,-1000.0,0.00025321,2]
[392108369,1761166238785,-500.0,0.00025321,2]
[392108370,1761166238794,-505.11398729,0.00025321,2]
[392108371,1761166238804,-157.34573935,0.00025349,5]
[392108372,1761166238814,-680.77,0.00025421,2]
[392108373,1761166238824,-1000.0,0.00025421,2]
[392108374,1761166238833,-904.46227763,0.00025421,2]
[392108375,1761166238846,-1017.8156044,0.00025421,2]
[392108376,1761166238855,-1000.0,0.00025421,2]
[392108377,1761166238865,-1000.0,0.00025421,2]
[392108378,1761166238875,-152.3612631,0.00025421,2]
[392108379,1761166238887,-151.0,0.00025421,2]
[392108380,1761166238899,-200.15840008,0.00025421,2]
[392108381,1761166238910,-151.0,0.00025476,2]
[392108382,1761166238923,-229.4832423,0.00025487,2]
[392108383,1761166238935,-507.94926773,0.00025521,2]
[392108384,1761166238945,-1000.0,0.00025521,2]
[392108385,1761166238954,-1000.0,0.00025521,2]
[392108386,1761166238963,-1000.0,0.00025521,2]
[392108387,1761166238972,-530.93053923,0.00025521,2]
[392108388,1761166238981,-1000.0,0.00025521,2]
[392108389,1761166238991,-1000.0,0.00025521,2]
[392108390,1761166239000,-500.45449464,0.00025521,2]
[392108391,1761166239010,-1000.0,0.00025521,2]
[392108392,1761166239019,-500.0,0.00025521,2]
[392108393,1761166239029,-500.0,0.00025521,2]
[392108394,1761166239038,-1000.0,0.00025521,2]
[392108395,1761166239048,-198.0,0.00025531,2]
[392108396,1761166239057,-160.0,0.00025569,2]
[392108397,1761166239067,-271.48711904,0.0002557,2]
[392108398,1761166239076,-3358.92651662,0.000257,2]
[392108399,1761166239085,-151.0,0.00025757,2]
[392108400,1761166239096,-151.0,0.00025757,2]
[392108401,1761166239105,-216.8402371,0.00025757,2]
[392108402,1761166239115,-1500.0,0.00025868,2]
[392108403,1761166239125,-1500.0,0.00025868,2]
[392108404,1761166239135,-1500.0,0.00025868,2]
[392108405,1761166239144,-1500.0,0.00025868,2]
[392108406,1761166239155,-500.0,0.00025968,2]
[392108407,1761166239166,-627.3819389,0.00025968,2]
[392108408,1761166239176,-501.10601427,0.00025968,2]
[392108409,1761166239186,-2715.97002093,0.00026,2]
[392108410,1761166239294,-1240.99268942,0.00026068,2]
[392108411,1761166239305,-1500.0,0.00026068,2]
[392108412,1761166239315,-1500.0,0.00026068,2]
[392108413,1761166239325,-1009.58762937,0.00026068,2]
[392108414,1761166239335,-1500.0,0.00026068,2]
[392108415,1761166239344,-499.94951459,0.00026068,2]
[392108416,1761166239353,-631.20087286,0.00026068,2]
[392108417,1761166239362,-3453.84,0.00026109,3]
[392108418,1761166239371,-1726.92,0.00026109,3]
[392108419,1761166239381,-863.46,0.00026109,3]
[392108420,1761166239391,-431.74,0.00026109,3]
[392108421,1761166239400,-500.0,0.00026114,2]
[392108422,1761166239410,-505.59155942,0.00026114,2]
[392108423,1761166239419,-500.0,0.00026114,2]
[392108424,1761166239428,-500.0,0.00026114,2]
[392108425,1761166239440,-500.0,0.00026114,2]
[392108426,1761166239450,-500.58622512,0.00026114,2]
[392108427,1761166239460,-500.0,0.00026114,2]
[392108428,1761166239470,-500.0,0.00026114,2]
[392108429,1761166239479,-502.11075442,0.00026114,2]
[392108431,1761166239488,-500.0,0.00026114,2]
[392108433,1761166239497,-500.0,0.00026114,2]
[392108435,1761166239506,-500.0,0.00026114,2]
[392108437,1761166239515,-500.0,0.00026114,2]
[392108439,1761166239524,-500.0,0.00026114,2]
[392108440,1761166239534,-500.0,0.00026114,2]
[392108442,1761166239544,-500.0,0.00026114,2]
[392108443,1761166239553,-500.0,0.00026114,2]
[392108444,1761166239562,-500.0,0.00026114,2]
[392108445,1761166239571,-502.53122103,0.00026114,2]
[392108446,1761166239581,-260.0,0.00026117,2]
[392108447,1761166239590,-170.86201625,0.00026134,5]
[392108448,1761166239599,-157.34573934,0.00026134,5]
[392108449,1761166239609,-500.0,0.0002624,2]
[392108450,1761166239618,-500.0,0.0002624,2]
[392108452,1761166239628,-508.33463292,0.0002624,2]
[392108454,1761166239637,-1525.74586575,0.00026416,2]
[392108456,1761166239645,-2000.0,0.00026416,2]
[392108458,1761166239655,-2000.0,0.00026416,2]
[392108459,1761166239664,-2000.0,0.00026416,2]
[392108460,1761166239674,-500.99787454,0.00026433,2]
[392108461,1761166239685,-151.0,0.00026516,7]
[392108463,1761166239695,-183.56424,0.00026516,7]
[392108465,1761166239704,-2085.41,0.00026546,2]
[392108467,1761166239713,-413.26294672,0.00026573,2]
[392108469,1761166239723,-1071.8772,0.000266,2]
[392108471,1761166239732,-449.099639,0.000266,2]
[392108473,1761166239741,-151.0,0.000266,7]
[392108475,1761166239750,-151.0,0.00026616,2]
[392108477,1761166239759,-151.0,0.00026616,2]
[392108479,1761166239768,-2000.0,0.00026616,2]
[392108481,1761166239777,-2000.0,0.00026616,2]
[392108483,1761166239786,-198.67647978,0.00026616,2]
[392108485,1761166239795,-1000.0,0.00026662,2]
[392108487,1761166239804,-1000.0,0.00026662,2]
[392108489,1761166239813,-1000.0,0.00026662,2]
[392108491,1761166239822,-597.77637791,0.00026662,2]
[392108493,1761166239831,-1000.0,0.00026662,2]
[392108495,1761166239842,-502.46996771,0.00026662,2]
[392108497,1761166239853,-1002.70253193,0.00026662,2]
[392108499,1761166239862,-1000.0,0.00026662,2]
[392108501,1761166239872,-1000.0,0.00026662,2]
[392108503,1761166239883,-183.27816794,0.00026662,2]
[392108505,1761166239893,-1000.0,0.00026662,2]
[392108507,1761166239902,-1000.0,0.00026662,2]
[392108508,1761166239912,-502.14047218,0.00026662,2]
[392108511,1761166239925,-1000.0,0.00026662,2]
[392108513,1761166239936,-360.0,0.00026665,2]
[392108515,1761166239946,-594.868874,0.00026676,2]
[392108517,1761166239956,-10170.05,0.000267,7]
[392108519,1761166239965,-151.0,0.000267,7]
[392108521,1761166239975,-151.0,0.000267,7]
[392108522,1761166239984,-312.0,0.0002672,2]
[392108524,1761166239993,-420.0,0.00026736,2]
[392108527,1761166240003,-1000.0,0.00026788,2]
[392108530,1761166240014,-880.0430271,0.00026788,2]
[392108531,1761166240023,-1680.0,0.00026857,2]
[392108533,1761166240033,-2500.0,0.00026964,2]
[392108536,1761166240043,-2500.0,0.00026964,2]
[392108538,1761166240052,-2500.0,0.00026964,2]
[392108541,1761166240062,-7045.5,0.00027,2]
[392108542,1761166240072,-151.0,0.00027,7]
[392108544,1761166240081,-627.23519524,0.00027,3]
[392108547,1761166240091,-2500.0,0.00027164,2]
[392108548,1761166240101,-2500.0,0.00027164,2]
[392108550,1761166240110,-501.21083915,0.0002721,2]
[392108552,1761166240120,-503.10569259,0.0002721,2]
[392108554,1761166240130,-1500.0,0.0002721,2]
[392108556,1761166240139,-1005.57870524,0.0002721,2]
[392108558,1761166240149,-1500.0,0.0002721,2]
[392108560,1761166240158,-1500.0,0.0002721,2]
[392108562,1761166240168,-270.76090602,0.0002721,2]
[392108564,1761166240178,-1500.0,0.0002721,2]
[392108566,1761166240191,-1500.0,0.0002721,2]
[392108568,1761166240200,-460.0,0.00027213,2]
[392108570,1761166240211,-1071.8772,0.00027263,2]
[392108572,1761166240220,-449.099639,0.00027263,2]
[392108574,1761166240229,-6556.80893368,0.00027287,2]
[392108576,1761166240239,-428.12470712,0.00027336,2]
[392108578,1761166240249,-198.74233549,0.0002739,2]
[392108580,1761166240258,-264.27842763,0.00027425,24]
[392108582,1761166240268,-2628.18964323,0.000275,2]
[392108584,1761166240277,-1358.33,0.000275,7]
[392108586,1761166240287,-151.0,0.000275,2]
[392108588,1761166240296,-3000.0,0.00027512,5]
[392108590,1761166240305,-3000.0,0.00027512,5]
[392108592,1761166240314,-3000.0,0.00027512,5]
[392108593,1761166240323,-2691.25,0.000276,2]
[392108595,1761166240333,-199.0,0.00027671,7]
[392108597,1761166240342,-3000.0,0.00027712,5]
[392108599,1761166240351,-2500.0,0.00027712,5]
[392108601,1761166240360,-512.4240118,0.00027758,5]
[392108604,1761166240370,-2000.0,0.00027758,5]
[392108606,1761166240382,-2000.0,0.00027758,5]
[392108607,1761166240391,-2000.0,0.00027758,5]
[392108610,1761166240401,-2000.0,0.00027758,5]
[392108611,1761166240412,-560.0,0.00027761,2]
[392108614,1761166240422,-636.03771102,0.00027891,2]
[392108615,1761166240431,-1071.8772,0.00027925,2]
[392108617,1761166240443,-449.099639,0.00027925,2]
[392108619,1761166240452,-199.0,0.00027945,8]
[392108621,1761166240461,-15194.17797009,0.00028,2]
[392108623,1761166240471,-787.72292643,0.00028,2]
[392108625,1761166240480,-3500.0,0.0002806,5]
[392108627,1761166240489,-3000.0,0.0002806,5]
[392108629,1761166240498,-199.0,0.00028219,9]
[392108631,1761166240508,-3500.0,0.0002826,5]
[392108633,1761166240517,-457.30267343,0.00028306,5]
[392108635,1761166240527,-500.0,0.00028306,5]
[392108637,1761166240536,-2500.0,0.00028306,5]
[392108639,1761166240545,-500.0,0.00028306,5]
[392108641,1761166240554,-660.0,0.00028309,2]
[392108643,1761166240564,-199.0,0.00028493,10]
[392108645,1761166240573,-32491.25403941,0.000285,7]
[392108647,1761166240582,-10170.05,0.000285,7]
[392108649,1761166240592,-476.30305723,0.00028573,2]
[392108651,1761166240601,-1071.8772,0.00028588,2]
[392108653,1761166240610,-449.099639,0.00028588,2]
[392108655,1761166240619,-2887.71567513,0.00028608,5]
[392108657,1761166240628,-26626.65971563,0.0002876,2]
[392108659,1761166240637,-990.68799871,0.0002876,2]
[392108661,1761166240646,-4000.0,0.0002876,5]
[392108663,1761166240655,-250.40585376,0.0002876,2]
[392108665,1761166240664,-2319.21272566,0.0002876,2]
[392108667,1761166240673,-249.053096,0.0002876,30]
[392108669,1761166240682,-151.0,0.0002876,2]
[392108671,1761166240693,-151.0,0.0002876,2]
[392108672,1761166240702,-151.0,0.0002876,30]
[392108674,1761166240711,-151.0,0.0002876,30]
[392108676,1761166240721,-151.0,0.0002876,30]
[392108678,1761166240730,-151.0,0.0002876,30]
[392108680,1761166240739,-151.0,0.0002876,30]
[392108682,1761166240748,-151.0,0.0002876,30]
[392108684,1761166240757,-557.46866,0.0002876,30]
[392108686,1761166240766,-557.46866,0.0002876,30]
[392108688,1761166240775,-557.46866,0.0002876,30]
[392108690,1761166240785,-438.22,0.00028767,2]
[392108692,1761166240794,-438.22,0.00028767,2]
[392108694,1761166240803,-438.22,0.00028767,2]
[392108696,1761166240813,-438.22,0.00028767,2]
[392108698,1761166240822,-438.22,0.00028767,2]
[392108700,1761166240832,-438.22,0.00028767,2]
[392108702,1761166240843,-438.22,0.00028767,2]
[392108704,1761166240853,-438.22,0.00028767,2]
[392108705,1761166240863,-438.22,0.00028767,2]
[392108707,1761166240872,-438.22,0.00028767,2]
[392108710,1761166240883,-438.22,0.00028767,2]
[392108711,1761166240892,-438.22,0.00028767,2]
[392108714,1761166240902,-438.22,0.00028767,2]
[392108716,1761166240912,-438.22,0.00028767,2]
[392108718,1761166240924,-438.22,0.00028767,2]
[392108720,1761166240933,-438.22,0.00028767,2]
[392108721,1761166240945,-438.22,0.00028767,2]
[392108723,1761166240955,-438.22,0.00028767,2]
[392108725,1761166240964,-438.22,0.00028767,2]
[392108727,1761166240974,-438.22,0.00028767,2]
[392108729,1761166240984,-438.22,0.00028767,2]
[392108732,1761166240994,-438.22,0.00028767,2]
[392108734,1761166241004,-438.22,0.00028767,2]
[392108736,1761166241013,-438.34309408,0.00028767,2]
[392108737,1761166241023,-199.0,0.00028767,11]
[392108740,1761166241034,-169.89105494,0.000288,7]
[392108741,1761166241044,-313.59,0.000288,4]
[392108743,1761166241054,-4000.0,0.00028808,5]
[392108745,1761166241064,-3000.0,0.00028854,5]
[392108747,1761166241074,-760.0,0.00028857,2]
[392108749,1761166241084,-151.0,0.00028925,30]
[392108751,1761166241094,-587.0,0.00028974,2]
[392108753,1761166241113,-882.29458223,0.00029,2]
[392108755,1761166241123,-1169.40395253,0.00029,2]
[392108757,1761166241131,-502.61799314,0.00029,7]
[392108759,1761166241140,-1001.92,0.00029,2]
[392108761,1761166241149,-60061.74073658,0.0002904,2]
[392108763,1761166241159,-151.0,0.0002904,7]
[392108765,1761166241168,-199.0,0.00029041,12]
[392108767,1761166241178,-212.61274819,0.00029073,5]
[392108769,1761166241188,-502.66916721,0.00029073,5]
[392108771,1761166241198,-500.0,0.00029073,5]
[392108773,1761166241207,-501.80042414,0.00029073,5]
[392108775,1761166241217,-158.12521565,0.00029073,2]
[392108777,1761166241227,-158.52362636,0.00029073,5]
[392108779,1761166241236,-500.0,0.00029073,5]
[392108781,1761166241245,-200.0,0.000291,7]
[392108783,1761166241254,-177.87051647,0.00029111,21]
[392108785,1761166241263,-250.298,0.00029111,21]
[392108786,1761166241272,-1001.92,0.00029174,2]
[392108788,1761166241282,-2351.0,0.00029238,2]
[392108790,1761166241291,-1071.8772,0.0002925,2]
[392108792,1761166241300,-161.586398,0.0002925,2]
[392108794,1761166241309,-449.099639,0.0002925,2]
[392108796,1761166241319,-199.0,0.00029315,13]
[392108798,1761166241329,-591.41126719,0.00029356,5]
[392108800,1761166241338,-2021.11721159,0.0002939,5]
[392108810,1761166241427,-2261.14003,0.00029402,5]
[392108813,1761166241439,-860.0,0.00029405,2]
[392108815,1761166241448,-200.0,0.0002951,7]
[392108816,1761166241458,-95000.0,0.0002956,2]
[392108819,1761166241467,-151.0,0.0002956,2]
[392108820,1761166241476,-151.0,0.0002956,2]
[392108822,1761166241486,-151.0,0.0002956,30]
[392108823,1761166241496,-151.0,0.0002956,30]
[392108825,1761166241505,-151.0,0.0002956,30]